bitfinex/quotes_ETHUSD_20220202
["timestamp","ask_amount","ask_price","bid_price","bid_amount"]
[1643846203831,0.00276763,2680.4,2679.7,2.53264]
[1643846205269,0.00276763,2680.4,2679.9,0.3]
[1643846205471,0.00276763,2680.4,2679.7,2.53264]
[1643846206671,1.20838854,2680.5,2679.7,2.53264]
[1643846206872,0.0027701,2680.4,2679.8,0.43386793]
[1643846207074,0.0027701,2680.4,2680.3,0.4134539]
[1643846207572,1.20838854,2680.5,2680.3,0.4134539]
[1643846208371,1.20838854,2680.5,2679.7,2.53264]
[1643846208572,0.0027701,2680.4,2680.0,0.3]
[1643846208772,0.0027701,2680.4,2679.7,2.53264]
[1643846209620,0.0027701,2680.4,2680.1,0.73983735]
[1643846209819,1.20838854,2680.5,2680.1,0.73983735]
[1643846210221,1.20838854,2680.5,2680.1,1.33983735]
[1643846211321,1.20838854,2680.5,2680.1,0.6]
[1643846211525,1.20838854,2680.5,2680.1,0.3]
[1643846211721,0.0027701,2680.7,2680.0,1.53255]
[1643846212026,2.37286352,2681.4,2680.0,1.53255]
[1643846212027,0.1865,2681.4,2680.6,0.01264137]
[1643846212223,0.149355,2682.4,2680.6,0.01264137]
[1643846212224,0.1864,2681.9,2681.7,0.78762036]
[1643846212522,0.1864,2681.9,2681.8,0.44747877]
[1643846212523,0.09497693,2681.9,2681.8,0.44747877]
[1643846212790,0.89176206,2682.2,2681.7,0.78762036]
[1643846212981,0.70536206,2682.1,2681.7,0.78762036]
[1643846213181,0.89176206,2682.0,2681.7,0.78762036]
[1643846213381,0.70536206,2682.0,2681.7,0.78762036]
[1643846213583,0.1864,2681.9,2681.7,0.78762036]
[1643846213782,0.89176206,2682.0,2681.7,0.78762036]
[1643846214185,0.1864,2682.0,2681.7,0.78762036]
[1643846214583,3.98019108,2681.8,2681.7,0.78762036]
[1643846215183,3.6,2681.8,2681.7,0.78762036]
[1643846215783,0.1914,2682.1,2681.7,0.78762036]
[1643846216085,0.1864,2682.1,2681.8,0.34806564]
[1643846216384,0.1864,2682.1,2681.3,0.9321]
[1643846216627,0.01294599,2682.0,2680.9,0.00743256]
[1643846216834,0.01217052,2681.3,2680.9,0.00743256]
[1643846217628,10.2181,2681.9,2680.9,0.00743256]
[1643846217629,0.1864,2682.2,2681.2,3.01265254]
[1643846217827,0.1864,2682.2,2682.1,0.01298741]
[1643846218029,1.085272,2682.6,2682.1,0.00298741]
[1643846218427,1.085272,2682.6,2682.2,0.51972108]
[1643846218627,1.085272,2682.6,2682.3,0.68164769]
[1643846218827,1.085272,2682.6,2682.3,0.98164769]
[1643846219330,1.085272,2682.6,2682.3,1.98164769]
[1643846219527,1.085272,2682.6,2682.3,0.98164769]
[1643846219728,1.085272,2682.6,2682.3,1.98164769]
[1643846219927,1.035272,2682.6,2682.3,1.98164769]
[1643846220370,1.035272,2682.6,2682.3,0.98164769]
[1643846220569,1.035272,2682.6,2682.3,1.98164769]
[1643846221173,4.86224454,2682.4,2681.4,0.1863]
[1643846221372,4.86224454,2682.4,2680.5,0.1864]
[1643846221373,2.11209131,2681.5,2680.5,0.1864]
[1643846221769,2.11209131,2681.5,2680.2,3.4837]
[1643846221770,3.8134,2681.4,2680.3,1.11885]
[1643846222170,3.8134,2681.4,2680.8,0.76748906]
[1643846222771,3.8134,2681.4,2680.9,0.3]
[1643846223173,0.1865,2682.0,2681.0,0.448]
[1643846223376,1.1419,2682.1,2681.0,0.9344]
[1643846223571,3.6632,2682.2,2681.0,5.0625922]
[1643846223771,3.6632,2682.2,2681.3,0.7949996]
[1643846224222,0.33125379,2681.9,2681.5,0.4408644]
[1643846224421,3.6632,2682.2,2681.5,0.4408644]
[1643846224625,3.6632,2682.2,2681.5,0.7408644]
[1643846224821,3.6632,2682.2,2681.5,1.0408644]
[1643846225422,0.38517238,2682.1,2681.5,1.0408644]
[1643846225622,3.6632,2682.2,2681.5,1.0408644]
[1643846225822,3.6632,2682.2,2681.5,0.4408644]
[1643846226625,4.05100586,2682.2,2681.5,0.4408644]
[1643846226829,4.05100586,2682.2,2681.5,1.3729144]
[1643846227228,4.05377452,2682.2,2681.5,1.9729144]
[1643846227627,3.66596866,2682.2,2681.5,1.9729144]
[1643846228669,3.66596866,2682.2,2682.0,0.3240093]
[1643846228870,3.6632,2682.2,2682.0,0.3240093]
[1643846229272,3.6632,2682.2,2681.5,1.53205]
[1643846229468,3.66596866,2682.2,2681.5,1.53205]
[1643846230469,3.66596866,2682.2,2681.5,2.06905]
[1643846230669,3.66596866,2682.2,2681.9,0.3383904]
[1643846230871,3.6632,2682.2,2681.9,0.3383904]
[1643846231168,3.6632,2682.2,2681.9,0.6383904]
[1643846231618,0.41671783,2682.3,2681.9,0.6383904]
[1643846232020,0.298542,2682.4,2681.9,0.6383904]
[1643846232220,1.035272,2682.6,2681.9,1.4753904]
[1643846232221,1.03804066,2682.6,2681.9,1.4753904]
[1643846232818,1.035272,2682.6,2681.9,1.4753904]
[1643846233022,1.41118894,2682.6,2681.9,1.4753904]
[1643846233220,1.41118894,2682.6,2682.1,2.16349]
[1643846233421,1.41118894,2682.6,2682.2,0.537]
[1643846233822,1.41118894,2682.6,2682.2,1.537]
[1643846234021,1.41118894,2682.6,2682.2,0.537]
[1643846234221,1.41118894,2682.6,2682.2,1.537]
[1643846234422,1.41118894,2682.6,2682.2,0.537]
[1643846234820,1.41118894,2682.6,2682.1,1.86349]
[1643846235026,1.41118894,2682.6,2681.9,0.8753904]
[1643846235474,1.035272,2682.6,2681.9,0.8753904]
[1643846235672,1.035272,2682.6,2681.9,1.1753904]
[1643846235874,1.035272,2682.6,2681.9,1.4753904]
[1643846236773,1.37274104,2682.6,2681.9,1.4753904]
[1643846238876,1.035272,2682.6,2682.0,0.9319]
[1643846239825,1.035272,2682.6,2682.4,0.39742791]
[1643846240025,1.035272,2682.6,2682.0,0.9319]
[1643846241427,1.035272,2682.6,2682.1,0.3514843]
[1643846241630,0.1864,2683.2,2682.5,0.01241077]
[1643846241830,0.1864,2683.6,2682.7,0.00605753]
[1643846242028,0.0027707,2683.2,2682.8,0.537]
[1643846242434,1.5788074,2683.8,2683.0,3.0]
[1643846242630,1.5788074,2683.8,2683.2,3.9312217]
[1643846242881,0.149173,2683.8,2683.4,2.79339]
[1643846243078,3.07173262,2684.5,2683.7,3.0]
[1643846243280,3.07173262,2684.5,2683.8,1.537]
[1643846243479,0.04343595,2684.5,2683.8,1.54369335]
[1643846243712,2.07386512,2685.2,2683.8,1.54369335]
[1643846243713,0.1862,2685.2,2684.0,3.00479287]
[1643846243979,0.1862,2685.3,2685.2,0.44998524]
[1643846244179,0.00277207,2685.6,2685.2,0.74998524]
[1643846244777,1.085272,2685.8,2685.2,0.74998524]
[1643846244982,2.56493112,2686.5,2685.2,0.74998524]
[1643846244983,0.1861,2686.4,2685.4,0.81965587]
[1643846245185,4.38833112,2686.8,2685.4,0.81965587]
[1643846245186,3.0,2686.8,2685.6,0.01278347]
[1643846245379,2.43743936,2686.8,2685.9,14.217]
[1643846245582,4.0231,2687.6,2685.9,14.217]
[1643846245583,1.11695992,2687.5,2686.2,0.01218914]
[1643846245777,0.186,2687.5,2686.2,0.01772319]
[1643846245978,0.93095992,2687.7,2686.5,0.93015]
[1643846246176,0.93095992,2687.7,2687.3,0.36558605]
[1643846246177,0.186,2687.6,2687.3,0.36558605]
[1643846246376,0.93095992,2687.7,2687.3,0.36558605]
[1643846246634,0.93095992,2687.7,2687.4,0.537]
[1643846246837,0.93095992,2687.7,2686.6,3.0]
[1643846246838,0.93095992,2688.0,2687.5,0.537]
[1643846247031,0.01248074,2688.1,2687.6,0.537]
[1643846247231,0.01248074,2688.1,2687.8,0.32522875]
[1643846247429,0.32179029,2688.3,2687.8,0.32522875]
[1643846247630,0.186,2688.4,2687.8,0.32522875]
[1643846247832,0.93095992,2688.6,2687.8,0.32522875]
[1643846248031,0.1859,2688.5,2687.8,0.32522875]
[1643846248233,0.1859,2688.6,2687.8,0.62522875]
[1643846248430,0.1859,2688.7,2687.8,0.62522875]
[1643846248732,0.1859,2688.7,2688.3,0.39981651]
[1643846248931,2.01623192,2689.1,2687.9,0.00415645]
[1643846248932,0.37063528,2688.2,2687.9,0.00415645]
[1643846249229,0.37063528,2688.2,2688.1,0.38960626]
[1643846249431,0.37063528,2688.2,2688.1,0.537]
[1643846249632,0.37063528,2688.2,2687.5,2.40137014]
[1643846249930,0.37063528,2688.2,2687.2,0.80645021]
[1643846250377,0.37063528,2688.2,2687.9,0.35005494]
[1643846250784,0.37063528,2688.2,2687.5,0.537]
[1643846251180,0.37063528,2688.2,2687.5,0.837]
[1643846251380,0.37063528,2688.2,2687.5,1.137]
[1643846251779,0.37063528,2688.2,2687.6,0.34260289]
[1643846251979,0.37063528,2688.2,2687.7,0.537]
[1643846252182,0.37063528,2688.2,2687.5,0.6]
[1643846252379,0.37063528,2688.2,2687.7,1.16038475]
[1643846252780,0.37063528,2688.2,2687.7,0.3]
[1643846252979,0.37063528,2688.2,2687.2,0.1897041]
[1643846253182,0.37063528,2688.2,2687.2,0.186]
[1643846253383,0.42212018,2688.0,2687.5,0.41565169]
[1643846253580,0.186,2687.9,2687.5,0.41565169]
[1643846254026,0.186,2687.9,2686.6,0.19000338]
[1643846254226,0.186,2687.9,2686.6,0.00400338]
[1643846255029,0.41366602,2687.4,2686.9,0.34673388]
[1643846255228,0.186,2687.9,2686.9,0.34673388]
[1643846256327,0.35860504,2687.5,2686.6,0.00400338]
[1643846256529,3.0,2687.3,2686.6,0.00400338]
[1643846256727,0.186,2687.4,2686.6,0.00400338]
[1643846256728,0.446,2687.2,2686.6,0.00400338]
[1643846257430,0.00276929,2687.3,2686.6,0.00400338]
[1643846257630,0.00276929,2687.3,2686.6,0.0125718]
[1643846257881,0.00276929,2687.6,2686.6,2.79872882]
[1643846258079,0.00276929,2687.6,2686.6,3.39872882]
[1643846258280,0.00276929,2687.6,2686.7,1.0]
[1643846258478,0.37063528,2688.2,2687.2,0.43117082]
[1643846258479,0.36653323,2687.7,2687.2,0.43117082]
[1643846258683,0.36653323,2687.7,2686.7,1.3]
[1643846258878,0.18876929,2688.1,2687.0,0.3]
[1643846259078,0.00276929,2687.6,2687.0,0.3]
[1643846259279,0.00276929,2687.6,2686.9,1.0]
[1643846259678,0.00276929,2688.1,2686.8,1.0]
[1643846259879,0.36724151,2687.9,2687.3,0.33027933]
[1643846260078,0.36724151,2687.9,2687.1,0.35257716]
[1643846260279,0.00276929,2687.8,2687.1,0.35257716]
[1643846260479,0.00276929,2687.8,2687.1,0.65257716]
[1643846260878,0.01486294,2688.1,2687.1,0.65257716]
[1643846261081,0.00276929,2688.1,2687.1,0.65257716]
[1643846261532,0.3867112,2688.1,2687.2,0.89706413]
[1643846261731,0.00276929,2688.1,2687.2,0.89706413]
[1643846261935,0.00276929,2688.1,2687.2,2.42707413]
[1643846262830,0.00276929,2688.1,2687.7,0.35791059]
[1643846263030,0.37063528,2688.2,2687.7,0.35791059]
[1643846263230,0.37063528,2688.2,2687.7,0.65791059]
[1643846264231,0.37063528,2688.2,2687.7,0.35791059]
[1643846264431,0.37063528,2688.2,2687.3,0.3]
[1643846264632,0.37063528,2688.2,2687.2,2.12707413]
[1643846264833,0.00276929,2688.1,2687.7,0.37175997]
[1643846265475,0.37063528,2688.2,2687.7,0.37175997]
[1643846266174,0.37063528,2688.2,2687.7,0.67175997]
[1643846266378,0.37063528,2688.2,2687.7,1.46297772]
[1643846267376,0.37063528,2688.2,2687.7,6.00249423]
[1643846267777,0.37063528,2688.2,2687.8,1.0]
[1643846268176,0.3686467,2688.2,2687.8,1.0]
[1643846268775,0.3686467,2688.2,2687.8,1.1131944]
[1643846269031,0.3686467,2688.2,2687.9,0.186]
[1643846269228,0.3686467,2688.2,2688.0,2.45921]
[1643846269427,0.3686467,2688.2,2688.0,3.45921]
[1643846269829,0.3686467,2688.2,2688.1,0.13293034]
[1643846270229,0.3686467,2688.2,2688.1,1.13293034]
[1643846270628,0.3686467,2688.2,2688.1,1.43293034]
[1643846270829,0.3686467,2688.2,2688.0,0.00594627]
[1643846271031,0.3686467,2688.2,2687.7,0.37175997]
[1643846271634,0.3686467,2688.2,2687.1,0.186]
[1643846271829,0.3686467,2688.2,2687.2,0.76203801]
[1643846271830,0.37141599,2688.2,2687.2,0.76203801]
[1643846272232,0.186,2688.1,2687.2,0.76203801]
[1643846272431,0.00276929,2688.0,2687.2,1.69205801]
[1643846272629,0.00276929,2688.0,2687.9,0.38951482]
[1643846272874,0.00276929,2688.0,2687.2,2.29205801]
[1643846273074,0.00276929,2688.1,2687.2,2.29205801]
[1643846273880,0.00276929,2688.1,2687.6,0.37786037]
[1643846274074,0.3686467,2688.2,2687.6,0.37786037]
[1643846274075,0.3686467,2688.2,2687.6,0.67786037]
[1643846274384,0.3686467,2688.2,2687.3,1.0]
[1643846274577,0.3686467,2688.2,2686.7,0.93023]
[1643846274578,2.89739781,2688.1,2686.7,0.93023]
[1643846274776,3.49739781,2688.1,2686.6,0.13293034]
[1643846274976,0.18639,2688.0,2686.6,0.13293034]
[1643846275274,0.00558602,2687.8,2686.6,0.13293034]
[1643846275474,0.42892645,2687.6,2686.1,1.86064]
[1643846275677,0.42892645,2687.6,2685.9,0.19884571]
[1643846275678,5.37515929,2687.5,2685.9,0.01284571]
[1643846275882,6.12115929,2687.5,2685.8,0.93054]
[1643846276080,6.12115929,2687.5,2685.2,0.01249979]
[1643846276081,3.0,2686.6,2685.2,0.19849979]
[1643846276279,3.0,2686.4,2684.7,0.186]
[1643846276546,3.0,2686.4,2684.5,0.01281197]
[1643846276547,0.3838869,2685.2,2684.5,0.01281197]
[1643846276739,0.3838869,2685.2,2684.0,1.11715]
[1643846277040,0.3838869,2685.2,2684.0,0.9436769]
[1643846277437,0.3838869,2685.2,2683.6,0.1862]
[1643846277638,0.00919631,2685.1,2684.7,0.42253498]
[1643846277845,0.18896929,2685.5,2684.7,0.42253498]
[1643846277846,0.00666321,2685.5,2684.7,0.01253885]
[1643846278039,0.00276929,2685.6,2684.8,0.1131944]
[1643846278639,0.00276929,2686.0,2684.8,0.1131944]
[1643846278844,0.3713017,2685.8,2685.2,0.36018782]
[1643846279239,0.3713017,2685.8,2684.8,2.1591944]
[1643846279439,0.00276929,2686.2,2684.8,1.1591944]
[1643846279645,0.00276929,2686.2,2685.4,0.82409955]
[1643846279842,0.18876929,2686.3,2685.4,0.3]
[1643846280040,0.18876929,2686.3,2685.3,0.44385441]
[1643846280041,0.00276929,2686.3,2685.3,0.44385441]
[1643846280277,0.00276929,2686.3,2685.4,0.1131944]
[1643846280480,0.00276929,2686.3,2685.4,4.23928771]
[1643846280678,0.186,2686.7,2685.4,4.23928771]
[1643846280679,0.37186947,2686.6,2686.0,0.33590938]
[1643846280878,0.37186947,2686.6,2685.6,0.93056]
[1643846281279,0.37186947,2686.6,2685.6,1.23056]
[1643846281280,0.00276929,2686.5,2685.6,1.23056]
[1643846281581,0.00276929,2686.5,2685.5,1.0]
[1643846281582,0.186,2686.4,2685.5,1.0]
[1643846281779,0.186,2686.4,2684.2,2.75111693]
[1643846281780,0.00276929,2686.3,2684.8,1.97531944]
[1643846281981,0.41128684,2685.6,2684.8,1.0]
[1643846282187,0.00276929,2686.1,2684.8,1.0]
[1643846282384,0.00276929,2686.1,2684.4,2.11699]
[1643846282385,0.186,2686.0,2684.4,2.11699]
[1643846282780,0.00276929,2685.9,2684.4,2.71699]
[1643846283181,0.1862,2685.8,2685.2,0.62653864]
[1643846283383,1.11728,2686.7,2685.2,0.62653864]
[1643846283384,0.00276929,2686.1,2685.2,0.62653864]
[1643846283581,0.00276929,2686.1,2685.2,0.32653864]
[1643846283882,0.00276929,2686.1,2685.2,0.62653864]
[1643846284134,0.00276929,2686.2,2685.2,0.62653864]
[1643846284333,0.00276929,2686.2,2685.7,0.32460183]
[1643846284536,1.76175976,2686.2,2685.7,0.32460183]
[1643846284737,0.18456452,2686.2,2685.3,0.79664382]
[1643846284934,0.18456452,2686.2,2685.3,1.09664382]
[1643846285333,1.57718283,2686.1,2685.3,1.09664382]
[1643846285534,1.57995535,2686.1,2685.3,1.09664382]
[1643846285934,1.9996215,2686.1,2685.5,0.42675925]
[1643846286137,0.41966615,2686.1,2685.5,0.42675925]
[1643846286435,1.57718889,2686.0,2685.5,0.42675925]
[1643846287338,1.57718889,2686.0,2685.5,0.72675925]
[1643846287533,1.57718889,2685.9,2685.5,0.72675925]
[1643846287776,1.57718889,2685.8,2685.5,0.72675925]
[1643846288078,1.57720569,2685.7,2685.1,0.93076]
[1643846288278,1.57720569,2685.6,2685.3,0.3]
[1643846288478,0.00277252,2686.1,2685.1,1.23076]
[1643846288879,0.00277252,2686.1,2685.2,0.3]
[1643846289083,0.38852736,2685.3,2684.9,0.186]
[1643846289285,0.38852736,2685.3,2683.3,1.99518034]
[1643846289286,3.0,2685.1,2683.3,1.99518034]
[1643846289481,6.94986142,2685.0,2683.3,0.13293034]
[1643846289679,6.94986142,2685.0,2683.4,0.03819997]
[1643846289680,3.01256042,2684.6,2683.4,0.03819997]
[1643846289884,3.01256042,2684.6,2683.3,0.13293034]
[1643846289885,1.58414647,2684.5,2683.3,0.13293034]
[1643846290078,1.57727142,2684.4,2683.3,0.13293034]
[1643846290278,1.57727142,2684.4,2682.3,0.19860708]
[1643846290279,0.322807,2683.5,2682.3,0.19860708]
[1643846290879,0.322807,2683.5,2682.3,0.01240708]
[1643846291278,0.37153205,2683.0,2682.4,0.39504152]
[1643846291535,0.37153205,2683.0,2682.3,0.01240708]
[1643846291731,0.37153205,2683.0,2682.1,0.1862]
[1643846291929,3.01520097,2683.8,2682.1,0.1862]
[1643846292130,4.5103,2683.7,2682.1,0.1862]
[1643846292330,0.1862,2683.6,2682.1,0.1862]
[1643846292534,2.49007632,2683.6,2682.1,4.3139751]
[1643846292734,2.49007632,2683.6,2682.1,4.9139751]
[1643846292933,0.60194201,2683.6,2683.0,0.37992493]
[1643846293134,0.1862,2683.9,2683.0,0.37992493]
[1643846293334,0.00427293,2684.0,2683.0,0.37992493]
[1643846293732,0.00427293,2684.0,2682.9,0.01224034]
[1643846294932,0.33125111,2683.7,2683.1,0.39005908]
[1643846295138,0.33125111,2683.7,2682.9,0.01224034]
[1643846296284,0.1862,2684.2,2682.9,0.01224034]
[1643846296689,0.1862,2684.2,2682.9,4.73814474]
[1643846296886,4.0977,2684.6,2683.0,0.6322]
[1643846297088,4.5612,2684.9,2683.5,0.01262374]
[1643846297287,0.39604087,2684.8,2683.6,0.446]
[1643846297487,0.39604087,2684.8,2683.6,0.746]
[1643846297886,0.3,2684.8,2683.6,0.446]
[1643846298089,0.3,2684.8,2683.4,1.0]
[1643846298090,2.56191447,2684.7,2683.4,1.0]
[1643846298287,0.1862,2684.7,2683.8,0.40995187]
[1643846298489,0.1862,2684.9,2683.2,0.1862]
[1643846298687,0.1862,2684.6,2683.2,0.1862]
[1643846298886,5.26037483,2684.9,2682.9,1.6]
[1643846298887,0.1862,2684.8,2683.0,0.1862]
[1643846299136,0.18639,2684.7,2683.1,0.89535384]
[1643846299331,0.1862,2684.6,2683.1,0.3]
[1643846299533,0.1862,2684.6,2683.6,0.41592626]
[1643846299534,0.33319957,2684.2,2683.6,0.41592626]
[1643846299931,0.33319957,2684.2,2683.6,0.3]
[1643846300336,0.33319957,2684.2,2683.0,0.93143]
[1643846300337,0.33319957,2684.2,2683.1,0.1862]
[1643846300536,2.52704934,2684.1,2682.9,1.0]
[1643846300736,3.45924934,2684.1,2682.8,0.00421562]
[1643846300934,4.98759,2684.1,2682.8,0.00421562]
[1643846301534,0.38713671,2683.4,2682.9,0.38621074]
[1643846301834,4.5012,2684.1,2682.9,0.38621074]
[1643846302034,4.0552,2684.1,2682.9,0.38621074]
[1643846302634,0.40465188,2683.9,2682.9,0.38621074]
[1643846302888,4.0552,2684.1,2683.4,0.38151289]
[1643846303091,3.6829,2684.6,2683.4,0.68151289]
[1643846303092,0.1862,2684.3,2683.4,0.68151289]
[1643846303283,0.1862,2684.4,2683.4,0.68151289]
[1643846303482,0.1862,2684.5,2683.4,0.68151289]
[1643846303682,0.1862,2684.7,2683.4,0.68151289]
[1643846303882,0.1862,2684.7,2683.1,5.12784752]
[1643846304083,3.18639,2684.6,2683.1,4.42784752]
[1643846304282,0.1862,2684.5,2683.2,0.95]
[1643846304482,0.1862,2684.5,2683.2,1.25]
[1643846304683,0.1862,2684.5,2683.2,1.55]
[1643846304987,0.41485921,2683.6,2682.8,0.00421562]
[1643846305388,0.93172,2684.3,2682.8,0.00421562]
[1643846305389,0.1862,2684.2,2682.8,0.00421562]
[1643846306183,0.37259,2684.2,2682.8,0.00421562]
[1643846306383,0.37259,2684.2,2682.7,0.84241212]
[1643846306633,0.42217793,2683.8,2683.2,0.38573946]
[1643846307531,0.42217793,2683.8,2682.7,1.84241212]
[1643846307532,0.42217793,2683.8,2682.7,2.14241212]
[1643846307732,0.42217793,2683.8,2682.7,1.44241212]
[1643846307935,0.42217793,2683.8,2682.6,4.14080072]
[1643846308236,0.42217793,2683.8,2682.4,0.1862]
[1643846308237,3.60856793,2683.8,2682.4,0.1862]
[1643846308436,3.0,2683.5,2682.1,0.1862]
[1643846308634,3.0,2683.5,2682.6,0.42043297]
[1643846308635,0.34498882,2683.1,2682.6,0.42043297]
[1643846308932,3.0,2683.5,2682.6,0.42043297]
[1643846309535,0.18639,2683.6,2682.6,0.42043297]
[1643846309737,0.18639,2683.6,2682.1,0.90267004]
[1643846309738,0.1862,2683.5,2682.1,0.90267004]
[1643846309944,0.1862,2683.5,2681.9,0.35733031]
[1643846309945,3.0,2683.3,2681.9,0.35733031]
[1643846310138,3.0,2683.3,2681.9,0.17113031]
[1643846310139,3.1862,2683.3,2681.9,0.17113031]
[1643846310379,0.1862,2683.3,2681.9,0.17113031]
[1643846310585,0.1862,2683.3,2681.9,0.5643945]
[1643846310586,3.18639,2683.2,2681.9,0.5643945]
[1643846310782,0.1862,2683.1,2681.9,0.5643945]
[1643846310983,0.6322,2683.1,2681.9,0.5643945]
[1643846311984,0.37481629,2682.7,2681.9,0.5643945]
[1643846312388,0.37481629,2682.7,2681.9,0.8643945]
[1643846312584,0.37481629,2682.7,2681.9,0.5643945]
[1643846312885,0.37481629,2682.7,2681.9,0.17113031]
[1643846313093,4.00720629,2682.7,2681.6,0.1862]
[1643846313389,4.10720629,2682.7,2681.6,0.1862]
[1643846313586,1.10720629,2682.7,2681.6,0.1862]
[1643846314040,4.40720629,2682.7,2681.6,0.1862]
[1643846314228,3.93227,2682.5,2681.6,0.1862]
[1643846314428,3.93227,2682.5,2681.1,0.87520021]
[1643846314628,0.93227,2682.5,2681.1,1.17520021]
[1643846314828,0.93227,2682.5,2681.1,1.47520021]
[1643846315029,0.93227,2682.5,2681.7,0.40329826]
[1643846315430,3.0,2682.2,2680.9,1.1186]
[1643846315638,3.0,2682.2,2680.8,0.1864]
[1643846315639,0.93247,2682.0,2680.8,0.1864]
[1643846315832,1.37847,2682.0,2680.7,0.17113031]
[1643846316033,1.37847,2682.0,2680.8,0.19881991]
[1643846316034,0.00372439,2682.0,2680.8,0.19881991]
[1643846316232,7.759,2682.4,2680.8,0.19881991]
[1643846316233,7.76306175,2682.4,2680.8,0.19881991]
[1643846316433,8.1441039,2682.4,2681.9,0.35960115]
[1643846316738,0.00526963,2682.6,2681.9,0.35960115]
[1643846317884,0.00526963,2682.6,2682.5,0.35020947]
[1643846318082,0.00526963,2682.6,2682.4,0.38674962]
[1643846318287,0.1,2682.7,2682.4,0.38674962]
[1643846318788,0.1862,2683.4,2682.4,0.08674962]
[1643846318985,3.9552,2683.6,2682.1,0.01287787]
[1643846319188,3.9552,2683.6,2682.0,6.2203506]
[1643846319385,3.9552,2683.6,2682.0,1.0]
[1643846319589,0.01234324,2683.2,2682.0,1.0]
[1643846319784,0.01234324,2683.2,2681.5,1.1864]
[1643846319989,0.01234324,2683.2,2681.5,0.1864]
[1643846319990,0.19873324,2683.2,2681.5,0.1864]
[1643846320191,3.0,2682.5,2681.5,0.1864]
[1643846320387,3.0,2682.5,2681.4,0.32150882]
[1643846320388,3.1864,2682.5,2681.4,0.32150882]
[1643846320589,0.18639,2682.4,2681.4,0.32150882]
[1643846320987,0.18639,2682.4,2680.8,3.08212209]
[1643846321188,0.1864,2682.3,2680.8,5.83508057]
[1643846321536,0.18639,2682.2,2680.8,5.83508057]
[1643846321736,3.18639,2682.2,2680.8,5.83508057]
[1643846322036,0.32199071,2681.5,2680.9,0.43589742]
[1643846322238,0.19166963,2682.1,2680.9,0.43589742]
[1643846322435,0.19166963,2682.1,2680.9,2.70822666]
[1643846322635,0.19166963,2682.1,2680.9,2.80653962]
[1643846322837,0.19166963,2682.1,2680.9,2.81933444]
[1643846323035,0.19166963,2682.1,2680.9,2.7515921]
[1643846323239,0.19166963,2682.1,2681.5,0.37173168]
[1643846323240,0.61424132,2682.1,2681.5,0.37173168]
[1643846323440,0.42784132,2682.1,2680.9,0.49919482]
[1643846323637,0.42784132,2682.1,2680.9,1.49919482]
[1643846323837,0.00526963,2682.1,2680.9,1.49919482]
[1643846324240,0.00526963,2682.1,2680.9,3.81324254]
[1643846324638,0.00526963,2682.1,2681.0,0.68121647]
[1643846324839,0.00526963,2682.1,2680.9,1.49919482]
[1643846325037,0.00526963,2682.1,2681.3,0.38103984]
[1643846325308,0.00526963,2682.1,2680.9,1.01279482]
[1643846325496,0.00526963,2682.1,2680.9,1.31279482]
[1643846325896,0.00526963,2682.1,2681.0,2.23743016]
[1643846326296,0.42707154,2682.1,2681.5,0.43343698]
[1643846326499,0.42707154,2682.1,2681.0,0.3]
[1643846326996,0.00526963,2682.1,2680.9,2.74811174]
[1643846327198,0.00526963,2682.1,2680.9,1.79919482]
[1643846327398,0.00526963,2682.1,2680.9,1.7864]
[1643846327899,0.00526963,2682.1,2681.5,0.38177886]
[1643846328500,0.00526963,2682.1,2680.9,1.0]
[1643846328707,0.37805963,2682.1,2680.9,1.3]
[1643846329542,0.36815269,2681.6,2681.0,0.32030424]
[1643846329744,0.1864,2682.0,2681.0,0.32030424]
[1643846330743,0.1864,2682.0,2681.1,0.86877401]
[1643846330945,0.00526963,2682.1,2680.7,0.47113031]
[1643846331143,0.00526963,2682.1,2680.7,2.82407148]
[1643846331349,0.00526963,2682.1,2680.8,1.0]
[1643846331543,0.00526963,2682.1,2680.8,1.4864]
[1643846332782,0.00526963,2682.1,2680.8,0.4864]
[1643846333185,0.00526963,2682.1,2681.0,0.85420932]
[1643846333384,0.00526963,2682.1,2681.7,0.44062721]
[1643846333385,0.19166963,2682.1,2681.7,0.44062721]
[1643846334487,0.19166963,2682.1,2681.0,1.0]
[1643846334488,0.00526963,2682.1,2681.0,1.0]
[1643846334689,0.00526963,2682.1,2680.9,1.0]
[1643846334886,0.00526963,2682.1,2680.9,0.3]
[1643846335289,0.00526963,2682.1,2680.8,0.1864]
[1643846335489,0.19166963,2682.1,2681.9,0.43399896]
[1643846335892,3.8667,2682.4,2681.9,0.43399896]
[1643846336091,0.1864,2682.6,2681.9,0.43399896]
[1643846336291,0.1864,2682.8,2681.9,0.43399896]
[1643846336535,4.6242,2682.9,2681.9,0.43399896]
[1643846337535,0.18639,2682.8,2681.9,0.43399896]
[1643846337736,0.1864,2682.7,2681.9,0.43399896]
[1643846337938,0.18639,2682.6,2681.9,0.43399896]
[1643846338535,0.37279,2682.8,2681.9,0.43399896]
[1643846338935,0.1864,2682.8,2681.9,0.43399896]
[1643846339140,0.40570672,2682.7,2681.9,0.43399896]
[1643846339737,0.37279,2682.8,2681.9,0.43399896]
[1643846339938,0.93227,2682.6,2681.9,0.43399896]
[1643846340138,4.6242,2682.9,2681.9,0.43399896]
[1643846340386,4.6242,2682.9,2682.0,2.22168421]
[1643846340585,4.4378,2682.9,2681.9,0.43399896]
[1643846340782,4.4378,2682.9,2682.5,0.32740638]
[1643846340984,0.1,2683.0,2681.9,1.0]
[1643846341281,0.1,2683.0,2681.8,0.3]
[1643846341282,0.09854633,2683.0,2681.8,0.3]
[1643846341485,0.09854633,2683.0,2681.7,0.96097544]
[1643846341685,0.09854633,2683.0,2681.7,0.77457544]
[1643846341883,0.18639,2682.9,2681.6,0.1864]
[1643846342086,0.93226,2682.6,2681.7,0.42370188]
[1643846342283,0.18639,2682.5,2681.7,0.42370188]
[1643846342484,0.37279,2682.5,2681.7,0.42370188]
[1643846342685,1.30514,2682.5,2681.2,0.01271971]
[1643846342884,1.30514,2682.5,2681.2,7.0]
[1643846342885,3.0,2682.2,2681.2,7.0]
[1643846343083,3.83759673,2682.1,2681.2,3.5]
[1643846343283,1.56489,2682.1,2681.2,3.5]
[1643846343485,3.83899593,2682.1,2681.2,3.5]
[1643846343686,0.36721647,2681.6,2681.0,0.44182352]
[1643846344037,0.1864,2682.0,2681.0,3.94182352]
[1643846344431,0.1864,2682.0,2681.0,0.44182352]